bitfinex-derivatives/quotes_SOLF0:USTF0_20251023
["timestamp","ask_amount","ask_price","bid_price","bid_amount"]
[1761190446110,2.91,183.19,183.15,2.75]
[1761190446313,2.91,183.18,183.16,5.07644395]
[1761190446610,2.91,183.18,183.12,2.75]
[1761190446808,2.91,183.18,183.14,2.75]
[1761190447008,2.91,183.18,183.15,5.07514218]
[1761190447210,2.91,183.18,183.16,5.07514218]
[1761190447404,2.91,183.18,183.14,2.75]
[1761190447607,2.91,183.18,183.15,5.07469198]
[1761190447816,2.91,183.18,183.14,2.75]
[1761190448016,2.91,183.18,183.15,5.07469198]
[1761190448213,2.91,183.18,183.14,2.75]
[1761190448413,2.91,183.18,183.15,5.07424904]
[1761190448609,2.91,183.18,183.14,2.75]
[1761190448916,2.91,183.18,183.15,5.07397313]
[1761190449115,2.91,183.18,183.14,2.75]
[1761190449315,2.91,183.18,183.15,7.82391031]
[1761190449511,2.91,183.18,183.15,2.75]
[1761190450415,48.13,183.2,183.15,2.75]
[1761190450617,45.22,183.19,183.15,2.75]
[1761190451718,45.22,183.19,183.17,2.75]
[1761190452313,2.91,183.18,183.14,2.75]
[1761190452519,2.91,183.18,183.15,5.07103797]
[1761190452718,2.91,183.18,183.14,2.75]
[1761190452911,2.91,183.18,183.15,5.0720536]
[1761190453109,2.91,183.18,183.14,2.75]
[1761190453310,2.91,183.18,183.15,5.07207428]
[1761190453506,2.91,183.18,183.14,2.75]
[1761190453814,2.91,183.18,183.15,7.82172239]
[1761190454110,2.91,183.18,183.15,2.75]
[1761190455215,45.22,183.18,183.15,2.75]
[1761190455518,2.91,183.17,183.15,2.75]
[1761190455817,45.22,183.18,183.09,2.75]
[1761190456018,45.22,183.18,183.11,2.75]
[1761190456318,45.22,183.18,183.13,2.75]
[1761190456319,48.13,183.18,183.13,2.75]
[1761190456519,48.13,183.18,183.14,7.82046891]
[1761190456722,2.91,183.17,183.15,5.07046891]
[1761190457019,2.91,183.17,183.14,2.75]
[1761190457320,45.22,183.18,183.16,2.75]
[1761190457813,48.13,183.18,183.16,2.75]
[1761190458221,2.91,183.2,183.16,2.75]
[1761190458417,48.13,183.2,183.16,2.75]
[1761190458615,48.13,183.2,183.17,7.81918363]
[1761190458812,45.22,183.2,183.18,7.81918363]
[1761190459012,45.22,183.2,183.18,2.75]
[1761190459412,48.13,183.2,183.18,2.75]
[1761190461725,48.13,183.2,183.11,2.75]
[1761190461920,48.13,183.2,183.13,2.75]
[1761190462120,48.13,183.2,183.15,2.75]
[1761190462426,48.13,183.2,183.17,2.75]
[1761190463828,48.13,183.2,183.18,5.07426479]
[1761190464028,48.13,183.2,183.18,2.86]
[1761190465628,2.91,183.2,183.18,2.86]
[1761190466429,2.91,183.2,183.1,10.06456942]
[1761190466430,2.91,183.2,183.12,2.86]
[1761190466629,48.13,183.2,183.14,2.86]
[1761190466829,2.79,183.19,183.16,2.86]
[1761190467024,2.79,183.19,183.17,5.07747588]
[1761190467230,2.79,183.19,183.16,2.86]
[1761190467430,2.79,183.19,183.17,5.07923995]
[1761190467728,2.79,183.19,183.16,2.86]
[1761190468028,2.79,183.19,183.17,5.07924193]
[1761190468231,2.79,183.19,183.16,2.86]
[1761190468431,2.79,183.19,183.17,5.07989357]
[1761190468631,2.79,183.19,183.16,2.86]
[1761190468833,2.79,183.19,183.17,5.07989557]
[1761190469026,2.79,183.19,183.16,2.86]
[1761190469227,2.79,183.19,183.17,5.07989675]
[1761190469427,2.79,183.19,183.16,2.86]
[1761190469629,2.79,183.19,183.17,5.08063471]
[1761190469828,2.79,183.19,183.16,2.86]
[1761190470030,2.79,183.19,183.17,5.08111108]
[1761190470229,2.79,183.19,183.16,2.86]
[1761190470429,2.79,183.19,183.17,5.08164495]
[1761190470732,2.79,183.19,183.18,5.08164495]
[1761190470929,5.09819301,183.22,183.18,5.08164495]
[1761190471132,2.82,183.24,183.2,2.82]
[1761190471428,2.82,183.24,183.21,5.08021687]
[1761190471734,2.82,183.24,183.22,5.07690949]
[1761190471934,2.82,183.24,183.23,5.07690949]
[1761190473833,2.82,183.28,183.24,2.82]
[1761190474036,45.2,183.27,183.24,2.82]
[1761190474330,2.82,183.26,183.24,2.82]
[1761190474835,45.2,183.27,183.24,2.82]
[1761190475134,48.02,183.27,183.24,2.82]
[1761190481436,2.82,183.27,183.24,2.82]
[1761190482639,45.2,183.28,183.24,2.82]
[1761190482836,45.2,183.28,183.16,17.94592501]
[1761190482837,45.2,183.28,183.25,5.05842812]
[1761190483140,45.2,183.28,183.26,2.82]
[1761190484539,1.32093151,183.32,183.26,2.82]
[1761190484740,5.09154484,183.34,183.26,2.82]
[1761190484945,2.82,183.35,183.28,2.82]
[1761190485141,2.82,183.35,183.3,2.82]
[1761190486236,1.32093151,183.34,183.23,4.911]
[1761190486442,2.82,183.33,183.26,2.82]
[1761190486640,2.82,183.33,183.27,5.04685101]
[1761190486836,2.82,183.33,183.26,2.82]
[1761190487036,2.82,183.33,183.27,5.04774335]
[1761190487236,2.82,183.33,183.26,2.82]
[1761190487437,2.82,183.33,183.27,7.86568247]
[1761190487645,2.82,183.33,183.27,2.82]
[1761190488641,2.82,183.31,183.27,2.82]
[1761190489242,2.82,183.31,183.24,2.82]
[1761190489446,2.82,183.29,183.25,2.82]
[1761190490344,45.18,183.32,183.25,2.82]
[1761190490345,4.14093151,183.28,183.25,2.82]
[1761190491548,1.32093151,183.3,183.25,2.82]
[1761190491845,2.82,183.29,183.25,2.82]
[1761190496654,1.32093151,183.3,183.25,2.82]
[1761190497253,49.32093151,183.32,183.25,2.82]
[1761190498150,4.14093151,183.32,183.25,2.82]
[1761190498450,2.82,183.31,183.25,2.82]
[1761190499954,1.32093151,183.32,183.25,2.82]
[1761190500157,1.32093151,183.32,183.25,1.32093151]
[1761190500454,1.32093151,183.32,183.26,2.86]
[1761190501054,4.19093151,183.32,183.26,2.86]
[1761190501854,2.87,183.31,183.28,2.86]
[1761190505859,2.87,183.29,183.25,2.86]
[1761190506256,2.87,183.29,183.26,7.90387363]
[1761190506459,2.87,183.29,183.26,2.86]
[1761190506959,1.32093151,183.3,183.26,2.86]
[1761190507156,2.87,183.32,183.28,2.86]
[1761190507157,2.87,183.31,183.28,2.86]
[1761190507862,2.87,183.31,183.25,2.86]
[1761190508056,2.87,183.31,183.27,2.86]
[1761190508455,2.87,183.31,183.28,7.90013494]
[1761190508662,2.87,183.31,183.28,2.86]
[1761190510263,4.19093151,183.34,183.28,2.86]
[1761190510868,2.87,183.33,183.28,2.86]
[1761190511467,2.87,183.33,183.26,1.32093151]
[1761190511468,2.87,183.33,183.29,7.90183576]
[1761190511667,2.87,183.33,183.3,2.86]
[1761190512666,2.87,183.33,183.25,1.32093151]
[1761190512970,2.87,183.33,183.27,2.86]
[1761190513167,2.87,183.33,183.28,7.90336611]
[1761190513371,2.87,183.29,183.24,2.86]
[1761190513565,2.87,183.29,183.25,5.04747557]
[1761190513764,2.87,183.29,183.26,5.04747557]
[1761190513961,2.87,183.29,183.24,2.86]
[1761190514163,2.87,183.29,183.25,5.04819275]
[1761190514373,2.87,183.29,183.26,5.04819275]
[1761190514574,2.87,183.29,183.27,5.05072411]
[1761190514774,2.87,183.29,183.24,2.86]
[1761190514975,2.87,183.29,183.25,5.05100029]
[1761190515176,2.87,183.29,183.26,5.05100029]
[1761190515372,2.87,183.29,183.27,5.05446781]
[1761190515576,2.87,183.29,183.24,2.86]
[1761190515777,2.87,183.29,183.25,5.05458668]
[1761190515979,2.87,183.29,183.26,5.05458668]
[1761190516180,1.32093151,183.32,183.27,7.91458668]
[1761190516376,4.19093151,183.32,183.28,7.91458668]
[1761190516572,4.19093151,183.32,183.28,2.86]
[1761190516876,2.87,183.31,183.28,2.86]
[1761190517379,2.87,183.31,183.29,5.05433325]
[1761190517581,2.87,183.31,183.28,2.86]
[1761190517873,2.87,183.31,183.29,5.05433325]
[1761190518079,2.87,183.31,183.28,2.86]
[1761190518282,2.87,183.31,183.29,5.05449405]
[1761190518482,2.87,183.31,183.28,2.86]
[1761190518682,2.87,183.31,183.29,5.05532063]
[1761190518884,2.87,183.31,183.28,2.86]
[1761190519178,2.87,183.31,183.29,5.05532063]
[1761190519476,1.32093151,183.32,183.3,7.91577765]
[1761190519680,1.32093151,183.32,183.3,2.86]
[1761190519883,4.19093151,183.32,183.3,2.86]
[1761190520785,2.87,183.33,183.3,2.86]
[1761190522378,2.87,183.33,183.31,5.05646377]
[1761190522574,2.87,183.33,183.3,2.86]
[1761190522786,2.87,183.33,183.31,5.05799895]
[1761190522984,2.87,183.33,183.3,2.86]
[1761190523179,2.87,183.33,183.31,5.05795202]
[1761190523381,2.87,183.33,183.3,2.86]
[1761190523587,2.87,183.33,183.31,5.05826883]
[1761190523785,2.87,183.33,183.3,2.86]
[1761190523983,2.87,183.33,183.31,5.05763053]
[1761190524185,2.87,183.33,183.3,2.86]
[1761190524383,2.87,183.33,183.31,7.81732014]
[1761190524685,2.74,183.34,183.32,5.05732014]
[1761190524883,2.74,183.34,183.31,2.76]
[1761190525079,4.06093151,183.35,183.32,7.81797722]
[1761190525286,4.06093151,183.35,183.32,2.76]
[1761190525487,9.15247635,183.37,183.32,2.76]
[1761190525686,2.74,183.36,183.33,7.81843056]
[1761190525888,2.74,183.36,183.33,2.76]
[1761190527695,2.74,183.36,183.29,1.32093151]
[1761190527896,2.74,183.36,183.3,7.82238636]
[1761190528095,2.74,183.36,183.31,7.82238636]
[1761190528395,2.74,183.36,183.32,5.06238636]
[1761190528591,2.74,183.36,183.33,5.06238636]
[1761190528796,2.74,183.36,183.31,2.76]
[1761190528997,2.74,183.36,183.32,5.06250614]
[1761190529192,2.74,183.36,183.33,5.06250614]
[1761190529392,2.74,183.36,183.31,2.76]
[1761190529694,1.32093151,183.37,183.33,2.69]
[1761190529893,2.76,183.36,183.33,2.69]
[1761190530597,4.08093151,183.37,183.33,2.69]
[1761190530794,2.76,183.36,183.33,2.69]
[1761190532697,4.08093151,183.37,183.33,2.69]
[1761190532897,2.76,183.37,183.34,5.06024436]
[1761190533101,53.01154484,183.4,183.36,2.69]
[1761190533393,49.24093151,183.4,183.36,2.69]
[1761190534299,5.09154484,183.41,183.36,2.69]
[1761190534300,7.85154484,183.42,183.36,2.69]
[1761190534499,2.76,183.4,183.36,2.69]
[1761190538492,2.76,183.36,183.3,2.69]
[1761190538803,2.76,183.36,183.31,7.74360432]
[1761190538998,2.76,183.36,183.32,5.05360432]
[1761190539300,2.76,183.36,183.33,5.05360432]
[1761190539502,2.76,183.36,183.31,2.69]
[1761190539693,2.76,183.36,183.32,7.74325459]
[1761190539895,2.76,183.36,183.33,5.05325459]
[1761190540205,2.76,183.36,183.32,2.69]
[1761190540397,2.76,183.36,183.33,5.05314095]
[1761190540593,2.76,183.36,183.29,2.69]
[1761190540796,2.76,183.36,183.3,7.74362365]
[1761190541095,2.76,183.36,183.31,7.74362365]
[1761190541297,2.76,183.36,183.32,7.74362365]
[1761190541497,2.76,183.36,183.33,5.05362365]
[1761190541688,2.76,183.36,183.32,2.69]
[1761190541890,2.76,183.36,183.33,5.05386591]
[1761190542098,2.76,183.36,183.32,2.69]
[1761190542298,2.76,183.36,183.33,5.05495683]
[1761190542500,2.76,183.36,183.32,2.69]
[1761190542702,2.76,183.36,183.33,5.0556009]
[1761190542904,2.76,183.36,183.32,2.69]
[1761190543098,2.76,183.36,183.33,5.0559584]
[1761190543304,2.76,183.36,183.32,2.69]
[1761190543504,2.76,183.36,183.33,5.05632595]
[1761190543804,2.76,183.36,183.32,2.69]
[1761190543999,2.76,183.36,183.33,5.05577]
[1761190544202,2.76,183.36,183.32,2.69]
[1761190544403,2.76,183.36,183.33,5.05550364]
[1761190544599,2.76,183.36,183.32,2.69]
[1761190544902,2.76,183.36,183.33,5.05602019]
[1761190545102,2.76,183.36,183.29,2.69]
[1761190545402,2.76,183.36,183.3,5.05650532]
[1761190545599,2.76,183.36,183.31,7.74650532]
[1761190545799,2.76,183.36,183.32,7.74650532]
[1761190546104,2.76,183.36,183.32,2.69]
[1761190547803,2.76,183.36,183.27,2.69]
[1761190548004,2.76,183.36,183.29,2.69]
[1761190548198,2.76,183.36,183.3,5.06037867]
[1761190548502,2.76,183.36,183.31,5.06037867]
[1761190548698,2.76,183.36,183.32,5.06037867]
[1761190548902,2.76,183.36,183.29,2.69]
[1761190549101,2.76,183.36,183.3,5.06077825]
[1761190549403,2.76,183.36,183.31,5.06077825]
[1761190549602,2.76,183.36,183.32,5.06077825]
[1761190549804,2.76,183.36,183.31,2.69]
[1761190550004,2.76,183.36,183.32,5.06085181]
[1761190550203,2.76,183.36,183.31,2.69]
[1761190550403,2.76,183.36,183.32,5.06099061]
[1761190550604,2.76,183.36,183.31,2.69]
[1761190550806,2.76,183.36,183.32,5.06099061]
[1761190551105,2.76,183.36,183.31,2.69]
[1761190551306,2.76,183.36,183.32,5.06171642]
[1761190551504,2.76,183.36,183.31,2.69]
[1761190551703,2.76,183.36,183.32,5.06171526]
[1761190551907,2.76,183.36,183.31,2.69]
[1761190552102,2.76,183.36,183.32,5.06101941]
[1761190552406,2.76,183.36,183.31,2.69]
[1761190552611,2.76,183.36,183.32,5.05830241]
[1761190552905,2.76,183.36,183.31,2.69]
[1761190553105,2.76,183.36,183.32,5.05830041]
[1761190553308,2.76,183.36,183.31,2.69]
[1761190553509,2.76,183.36,183.32,5.05857107]
[1761190553808,2.76,183.36,183.31,2.69]
[1761190554105,2.76,183.36,183.32,5.05954522]
[1761190554307,2.76,183.36,183.31,2.69]
[1761190554507,2.76,183.36,183.32,5.05940474]
[1761190554707,2.76,183.36,183.31,2.69]
[1761190554907,2.76,183.36,183.32,5.05940474]
[1761190555200,2.76,183.36,183.31,2.69]
[1761190555505,2.76,183.36,183.32,5.05869326]
[1761190555707,2.76,183.36,183.31,2.69]
[1761190555908,2.76,183.36,183.32,5.05760023]
[1761190556104,2.76,183.36,183.31,2.69]
[1761190556409,2.76,183.36,183.32,5.05805069]
[1761190556708,2.76,183.36,183.34,2.69]
[1761190557403,2.76,183.36,183.27,2.69]
[1761190557606,2.76,183.36,183.29,2.69]
[1761190557799,2.76,183.36,183.3,7.74785977]
[1761190558004,2.76,183.36,183.31,7.74785977]
[1761190558205,2.76,183.36,183.32,5.05785977]
[1761190558405,2.76,183.36,183.33,5.05785977]
[1761190558604,2.76,183.36,183.31,2.69]
[1761190558809,2.76,183.36,183.32,5.05630176]
[1761190559009,2.76,183.36,183.33,5.05630176]
[1761190559212,2.76,183.36,183.31,2.69]
[1761190559411,2.76,183.36,183.32,7.82751735]
[1761190559608,2.76,183.36,183.33,5.05751735]
[1761190559810,2.76,183.36,183.32,2.77]
[1761190560106,2.76,183.36,183.33,5.0575183]
[1761190560311,2.76,183.36,183.32,2.77]
[1761190560612,2.76,183.36,183.33,5.05849449]
[1761190560909,2.76,183.36,183.34,5.05808378]
[1761190561101,2.76,183.36,183.32,2.77]
[1761190561300,2.76,183.36,183.33,7.83066229]
[1761190561505,2.76,183.36,183.34,5.06066229]
[1761190561702,2.76,183.36,183.3,2.77]
[1761190561907,2.76,183.36,183.32,2.77]
[1761190562103,2.76,183.36,183.33,5.0610612]
[1761190562302,2.76,183.36,183.34,5.0610612]
[1761190562509,2.76,183.36,183.32,2.77]
[1761190562716,2.76,183.36,183.33,5.06209189]
[1761190563014,2.76,183.36,183.34,5.06209189]
[1761190563314,2.76,183.36,183.32,2.77]
[1761190563515,2.76,183.36,183.33,5.06296209]
[1761190563713,2.76,183.36,183.34,5.06296209]
[1761190563913,2.76,183.36,183.32,2.77]
[1761190564117,2.76,183.36,183.33,5.06296066]
[1761190564315,2.76,183.36,183.34,5.06296066]
[1761190564515,2.76,183.36,183.28,2.77]
[1761190564715,2.76,183.36,183.3,2.77]
[1761190564912,2.76,183.36,183.32,2.77]
[1761190565118,2.76,183.36,183.33,5.06527064]
[1761190565312,2.76,183.36,183.34,5.06527064]
[1761190565518,2.76,183.36,183.32,2.77]
[1761190565718,2.76,183.36,183.33,5.06736276]
[1761190565910,2.76,183.36,183.34,5.06736276]
[1761190566111,2.76,183.36,183.32,2.77]
[1761190566441,45.14,183.37,183.34,2.77]
[1761190566614,48.05,183.37,183.34,2.77]
[1761190567323,45.14,183.37,183.35,7.83939137]
[1761190567517,45.14,183.37,183.35,2.77]
[1761190569423,48.05,183.37,183.35,2.77]
[1761190569623,48.05,183.37,183.36,5.07195727]
[1761190569824,48.05,183.37,183.35,2.77]
[1761190570221,48.05,183.37,183.36,5.07212148]
[1761190570426,2.91,183.42,183.37,2.77]
[1761190570615,2.91,183.42,183.38,7.84212148]
[1761190570816,2.91,183.42,183.39,5.07212148]
[1761190571023,2.91,183.42,183.4,5.07212148]
[1761190571225,2.91,183.42,183.38,2.77]
[1761190571527,2.91,183.42,183.39,5.06690278]
[1761190571729,2.91,183.42,183.4,5.06690278]
[1761190571922,2.91,183.42,183.38,2.77]
[1761190572125,2.91,183.42,183.39,5.0664935]
[1761190572325,2.91,183.42,183.4,5.0664935]
[1761190572624,2.91,183.42,183.38,2.77]
[1761190572825,2.91,183.42,183.39,5.06486604]
[1761190573026,2.91,183.42,183.4,5.06486604]
[1761190573225,2.91,183.42,183.38,2.77]
[1761190573430,2.91,183.42,183.39,5.06289978]
[1761190573730,2.91,183.42,183.4,5.06289978]
[1761190573931,2.91,183.42,183.38,2.77]
[1761190574133,50.23154484,183.46,183.4,2.77]
[1761190574429,2.91,183.45,183.4,2.77]
[1761190576632,2.91,183.44,183.4,2.77]
[1761190577336,48.05,183.45,183.4,2.77]
[1761190577544,2.91,183.44,183.4,2.77]
[1761190578036,2.91,183.44,183.41,2.77]
[1761190580537,2.91,183.44,183.34,2.77]
[1761190580741,2.91,183.44,183.36,2.77]
[1761190580939,2.91,183.44,183.37,7.8198452]
[1761190581138,2.91,183.44,183.38,5.0498452]
[1761190581338,2.91,183.44,183.39,5.0498452]
[1761190581535,45.14,183.44,183.39,2.77]
[1761190581740,2.91,183.43,183.39,2.77]
[1761190585341,2.91,183.43,183.34,2.95]
[1761190585543,2.81,183.41,183.36,2.95]
[1761190585844,2.81,183.41,183.37,7.99833563]
[1761190586045,2.81,183.41,183.37,2.95]
[1761190586440,2.81,183.41,183.38,7.99854221]
[1761190586746,2.81,183.41,183.38,2.95]
[1761190591941,4.8622517,183.44,183.38,2.95]
[1761190592245,2.8,183.43,183.38,2.95]
[1761190597259,45.12,183.43,183.38,2.95]
[1761190597455,2.8,183.42,183.38,2.95]
[1761190600662,1.31917872,183.39,183.38,2.95]
[1761190600852,1.31917872,183.39,183.38,8.00082612]
[1761190603762,1.31917872,183.41,183.39,2.86]
[1761190605660,4.11917872,183.41,183.39,2.86]
[1761190607666,1.31917872,183.42,183.39,2.86]
[1761190607856,1.31917872,183.42,183.41,2.86]
[1761190609665,2.8,183.41,183.35,2.86]
[1761190609865,1.31917872,183.39,183.37,2.86]
[1761190610067,4.11917872,183.39,183.38,5.05569283]
[1761190612556,2.8,183.42,183.38,5.05569283]
[1761190612762,2.8,183.38,183.32,2.86]
[1761190612968,2.8,183.38,183.33,5.06130626]
[1761190613268,2.8,183.38,183.34,5.06130626]
[1761190613467,2.8,183.38,183.35,5.06130626]
[1761190613764,2.8,183.38,183.32,2.86]
[1761190613962,2.8,183.38,183.33,5.06165805]
[1761190614156,2.8,183.38,183.34,5.06165805]
[1761190614357,2.8,183.38,183.35,7.92163571]
[1761190614358,1.31917872,183.36,183.35,7.92163571]
[1761190615162,1.31917872,183.36,183.35,5.06163571]
[1761190615369,4.11917872,183.36,183.35,5.06163571]
[1761190616563,1.31917872,183.36,183.35,5.06163571]
[1761190616760,1.31917872,183.36,183.35,7.92163571]
[1761190617668,1.31917872,183.39,183.36,2.86]
[1761190617870,1.31917872,183.39,183.38,2.86]
[1761190618166,2.8,183.42,183.39,2.86]
[1761190618366,2.8,183.42,183.36,2.76]
[1761190618663,2.8,183.42,183.38,2.76]
[1761190619366,2.8,183.42,183.39,7.8196947]
[1761190619569,2.8,183.42,183.39,2.76]
[1761190620461,1.31917872,183.4,183.39,2.76]
[1761190620766,1.31917872,183.4,183.39,7.82007095]
[1761190621969,1.31917872,183.4,183.39,5.06007095]
[1761190622166,2.81,183.39,183.36,2.76]
[1761190622357,2.81,183.39,183.37,5.06042414]
[1761190622358,1.31917872,183.38,183.37,5.06042414]
[1761190623970,4.12917872,183.38,183.37,5.06042414]
[1761190624167,4.12917872,183.38,183.33,2.76]
[1761190624168,1.31917872,183.38,183.33,2.76]
[1761190624466,1.31917872,183.38,183.35,2.76]
[1761190624667,1.31917872,183.38,183.36,7.8183314]
[1761190624867,1.31917872,183.38,183.37,5.0583314]
[1761190626771,2.81,183.41,183.38,2.76]
[1761190626965,1.31917872,183.39,183.38,2.76]
[1761190627165,1.31917872,183.39,183.38,7.81689947]
[1761190630273,1.31917872,183.39,183.38,5.05689947]
[1761190631274,1.31917872,183.39,183.38,7.81689947]
[1761190631967,4.12917872,183.39,183.32,2.76]
[1761190632166,1.31917872,183.35,183.32,2.76]
[1761190633873,1.31917872,183.33,183.32,2.76]
[1761190644085,1.31917872,183.33,183.32,7.71930333]
[1761190646681,1.31917872,183.33,183.32,4.95930333]
[1761190646886,2.72,183.32,183.24,2.8]
[1761190647090,1.31917872,183.26,183.24,2.8]
[1761190649381,4.14917872,183.26,183.24,2.8]
[1761190649984,1.31917872,183.26,183.24,2.8]
[1761190652896,4.14917872,183.26,183.21,2.8]
[1761190653093,1.31917872,183.24,183.21,2.8]
[1761190653294,2.83,183.26,183.21,2.8]
[1761190653497,1.31917872,183.22,183.21,2.8]
[1761190654093,1.31917872,183.22,183.14,2.8]
[1761190654302,1.31917872,183.19,183.14,2.8]
[1761190655097,1.31917872,183.17,183.14,2.8]
[1761190656694,4.14917872,183.17,183.14,2.8]
[1761190657095,1.31917872,183.15,183.14,2.8]
[1761190660196,1.31917872,183.15,183.11,2.8]
[1761190660401,4.14917872,183.15,183.11,2.8]
[1761190661290,2.83,183.14,183.11,2.8]
[1761190662103,1.31917872,183.13,183.06,2.8]
[1761190662805,2.83,183.11,183.06,2.8]
[1761190663794,2.06774715,183.1,183.03,2.8]
[1761190663999,4.89774715,183.13,183.03,2.8]
[1761190664307,2.83,183.12,183.03,2.8]
[1761190667613,2.83,183.09,183.03,2.8]
[1761190669912,2.83,183.09,182.97,2.8]
[1761190673203,2.83,183.09,183.0,2.8]
[1761190680806,2.7,183.13,183.0,2.8]
[1761190681010,2.7,183.13,183.03,2.87]
[1761190686416,2.7,183.13,183.04,2.87]
[1761190690415,4.76774715,183.16,183.04,2.87]
[1761190690624,2.7,183.15,183.04,2.87]
[1761190693223,2.7,183.15,183.05,2.87]
[1761190693418,2.7,183.18,183.08,2.06774715]
[1761190693617,2.7,183.21,183.09,2.87]
[1761190693915,2.06774715,183.22,183.09,2.87]
[1761190693916,2.06774715,183.19,183.09,2.87]
[1761190694115,2.7,183.15,183.06,2.87]
[1761190706727,4.80774715,183.13,183.06,2.87]
[1761190708229,2.74,183.12,183.06,2.87]
[1761190708627,2.06774715,183.13,183.06,2.87]
[1761190708826,2.93,183.15,183.06,2.87]
[1761190709227,2.93,183.15,183.06,7.90302501]
[1761190709426,2.93,183.15,183.07,2.78]
[1761190712437,2.93,183.12,183.07,2.78]
[1761190715139,2.93,183.12,183.08,5.17757046]
[1761190715438,2.93,183.12,183.09,5.17757046]
[1761190715739,2.93,183.12,183.1,5.17757046]
[1761190715930,2.93,183.12,183.11,5.17757046]
[1761190720846,2.93,183.15,183.11,5.17757046]
[1761190721145,2.93,183.15,183.12,5.17757046]
[1761190721442,2.93,183.15,183.13,5.17757046]
[1761190721644,2.93,183.15,183.14,4.98912641]
[1761190722642,2.93,183.17,183.14,4.98912641]
[1761190722845,2.93,183.17,183.15,4.98912641]
[1761190723040,2.93,183.17,183.11,2.78]
[1761190723242,2.93,183.17,183.12,4.98933985]
[1761190723446,2.93,183.17,183.13,4.98933985]
[1761190723647,2.93,183.17,183.14,4.98933985]
[1761190723847,2.93,183.16,183.1,2.78]
[1761190724148,2.93,183.16,183.11,4.99003929]
[1761190724447,2.93,183.16,183.1,2.78]
[1761190724840,1.32285259,183.14,183.1,2.78]
[1761190725140,4.25285259,183.14,183.1,2.78]
[1761190725442,4.25285259,183.14,183.11,4.98085664]
[1761190725648,4.25285259,183.14,183.12,4.98085664]
[1761190725841,4.25285259,183.14,183.13,4.98085664]
[1761190727447,2.93,183.14,183.13,4.98085664]
[1761190732251,1.32285259,183.15,183.13,4.98085664]
[1761190732450,4.25285259,183.15,183.14,4.98085664]
[1761190737257,2.93,183.14,183.1,2.78]
[1761190738252,2.93,183.14,183.11,4.96964028]
[1761190738458,2.93,183.14,183.12,4.96964028]
[1761190738757,2.93,183.14,183.13,4.96964028]
[1761190740259,4.25285259,183.14,183.13,4.96964028]
[1761190741559,2.94,183.13,183.05,2.8]
[1761190741751,2.94,183.08,183.06,4.97236626]
[1761190741950,2.94,183.08,183.07,4.97236626]
[1761190742153,1.32285259,183.09,183.07,4.97236626]
[1761190742353,4.26285259,183.09,183.08,4.97236626]
[1761190743356,4.26285259,183.09,183.03,2.8]